fUSD/lending_fUSD_20260429
["ID","MTS","AMOUNT","RATE_DAILY","PERIOD"]
[421332513,1777451440126,-170.54214579,0.00010583,2]
[421332515,1777451440135,-500.0,0.00010583,2]
[421332517,1777451440145,-449.87509977,0.00010583,2]
[421332519,1777451440154,-41958.69564,0.00010584,2]
[421332521,1777451440164,-5177.91381316,0.00010584,2]
[421332528,1777451440828,-700.0,0.00010584,2]
[421332529,1777451440941,-1149.11159905,0.00010584,2]
[421332530,1777451441000,-688.8580236,0.00010584,2]
[421332537,1777451443441,-3532.0,0.00010332,2]
[421332538,1777451443451,-118148.01474479,0.00010584,2]
[421332539,1777451443461,-234692.10578348,0.00010584,2]
[421332540,1777451443820,-2701.07607828,0.00010584,2]
[421332546,1777451446410,-5227.26542733,0.00010584,2]
[421332547,1777451446467,-136463.12502811,0.00010584,2]
[421332548,1777451446580,-1006.25890066,0.00010584,2]
[421332549,1777451501360,1074.0,0.0003013,120]
[421332550,1777451512112,150.0,0.000148,120]
[421332552,1777451560862,-283.0,0.00010332,2]
[421332553,1777451560887,-6036.0,0.00010332,2]
[421332554,1777451560912,-578.20924308,0.00010332,2]
[421332555,1777451560937,-1350.0,0.00010333,2]
[421332556,1777451560962,-416.0,0.00010333,2]
[421332557,1777451560988,-3783.0,0.00010333,2]
[421332558,1777451561013,-927.0,0.00010333,2]
[421332559,1777451561037,-1222.512,0.00010333,2]
[421332560,1777451561062,-151.882,0.00010333,2]
[421332561,1777451561091,-746.4,0.00010375,2]
[421332562,1777451561119,-21674.5379,0.00010484,2]
[421332563,1777451561144,-4929.97806439,0.00010486,2]
[421332564,1777451561170,-238.87932866,0.00010578,2]
[421332565,1777451561195,-362.7765187,0.00010582,2]
[421332566,1777451561220,-207299.82494517,0.00010584,2]
[421332567,1777451595636,10000.0,0.00030137,120]
[421332568,1777451699251,150.0,0.000148,120]
[421332569,1777451756472,258.41011719,0.0001035,21]
[421332570,1777451885000,290.91,0.000148,120]
[421332572,1777452060227,258.41011718,9.772e-05,21]
[421332574,1777452278249,363.96,0.00030136,120]
[421332575,1777452278677,363.96,0.00030136,120]
[421332576,1777452279094,363.96,0.00030136,120]
[421332577,1777452279522,363.96,0.00030136,120]
[421332578,1777452279992,363.96,0.00030136,120]
[421332579,1777452281001,363.96,0.00030136,120]
[421332580,1777452282852,363.96,0.00030136,120]
[421332581,1777452282917,363.96,0.00030136,120]
[421332582,1777452282994,363.96,0.00030136,120]
[421332583,1777452283093,363.96,0.00030136,120]
[421332584,1777452283512,363.96,0.00030136,120]
[421332585,1777452283936,363.96,0.00030136,120]
[421332586,1777452284362,363.96,0.00030136,120]
[421332587,1777452284787,363.96,0.00030136,120]
[421332588,1777452285266,363.96,0.00030136,120]
[421332589,1777452286021,363.96,0.00030136,120]
[421332590,1777452286454,363.96,0.00030136,120]
[421332591,1777452286853,363.96,0.00030136,120]
[421332592,1777452287284,363.96,0.00030136,120]
[421332593,1777452287724,363.96,0.00030136,120]
[421332594,1777452288137,363.96,0.00030136,120]
[421332595,1777452288576,363.96,0.00030136,120]
[421332596,1777452288995,363.96,0.00030136,120]
[421332597,1777452289401,363.96,0.00030136,120]
[421332598,1777452289833,363.96,0.00030136,120]
[421332599,1777452290243,363.96,0.00030136,120]
[421332600,1777452290661,363.96,0.00030136,120]
[421332601,1777452291102,363.96,0.00030136,120]
[421332602,1777452291565,363.96,0.00030136,120]
[421332603,1777452292463,363.96,0.00030136,120]
[421332604,1777452292503,363.96,0.00030136,120]
[421332605,1777452293728,363.96,0.00030136,120]
[421332606,1777452293768,363.96,0.00030136,120]
[421332607,1777452293810,363.96,0.00030136,120]
[421332608,1777452294102,363.96,0.00030136,120]
[421332609,1777452294525,363.96,0.00030136,120]
[421332610,1777452295518,363.96,0.00030136,120]
[421332611,1777452295950,363.96,0.00030136,120]
[421332612,1777452296551,363.96,0.00030136,120]
[421332613,1777452296979,363.96,0.00030136,120]
[421332614,1777452297396,363.96,0.00030136,120]
[421332615,1777452297811,363.96,0.00030136,120]
[421332616,1777452298321,363.96,0.00030136,120]
[421332617,1777452298757,363.96,0.00030136,120]
[421332618,1777452299167,363.96,0.00030136,120]
[421332619,1777452299580,363.96,0.00030136,120]
[421332620,1777452299997,363.96,0.00030136,120]
[421332621,1777452300416,363.96,0.00030136,120]
[421332622,1777452300825,363.96,0.00030136,120]
[421332623,1777452301245,363.96,0.00030136,120]
[421332628,1777452631374,-150.0,8.832e-05,2]
[421332629,1777452631386,-250.13313087,8.832e-05,2]
[421332630,1777452631480,-13.86686913,8.832e-05,2]
[421332631,1777452631490,-1124.34443685,9.105e-05,2]
[421332641,1777452638412,-1375.65556315,9.105e-05,2]
[421332642,1777452638424,-300.0,9.225e-05,2]
[421332643,1777452638434,-300.0,9.225e-05,2]
[421332644,1777452638444,-377.92347901,9.225e-05,2]
[421332645,1777452638464,-822.07652099,9.225e-05,2]
[421332646,1777452638475,-2500.0,9.226e-05,2]
[421332647,1777452638484,-2500.0,9.226e-05,2]
[421332648,1777452638495,-150.0,9.518e-05,2]
[421332649,1777452638504,-150.0,9.518e-05,2]
[421332650,1777452638515,-150.0,9.518e-05,2]
[421332651,1777452638525,-150.0,9.518e-05,2]
[421332652,1777452638535,-150.0,9.518e-05,2]
[421332653,1777452638546,-150.0,9.518e-05,2]
[421332654,1777452638557,-150.0,9.518e-05,2]
[421332655,1777452638567,-150.0,9.518e-05,2]
[421332656,1777452638576,-150.0,9.538e-05,2]
[421332657,1777452638586,-150.0,9.554e-05,2]
[421332658,1777452638596,-150.0,9.591e-05,2]
[421332659,1777452638606,-150.0,9.627e-05,2]
[421332660,1777452638616,-150.0,9.664e-05,2]
[421332661,1777452638626,-162.39,9.668e-05,2]
[421332662,1777452638636,-1374.91,9.67e-05,2]
[421332663,1777452638646,-999.99,9.67e-05,2]
[421332664,1777452638657,-9999.99,9.67e-05,2]
[421332665,1777452638667,-236.64,9.693e-05,2]
[421332666,1777452638678,-150.0,9.7e-05,2]
[421332667,1777452638688,-2500.0,9.715e-05,2]
[421332668,1777452638699,-250.0,9.715e-05,2]
[421332669,1777452638709,-250.0,9.715e-05,2]
[421332670,1777452638719,-300.0,9.715e-05,2]
[421332671,1777452638728,-250.0,9.715e-05,2]
[421332672,1777452638739,-150.0,9.729e-05,2]
[421332673,1777452638751,-150.0,9.729e-05,2]
[421332674,1777452638762,-150.0,9.737e-05,2]
[421332675,1777452638772,-150.0,9.773e-05,2]
[421332676,1777452638782,-150.0,9.782e-05,2]
[421332677,1777452638791,-150.0,9.81e-05,2]
[421332678,1777452638802,-150.0,9.833e-05,2]
[421332679,1777452638813,-150.0,9.846e-05,2]
[421332680,1777452638823,-578.20924308,9.87e-05,2]
[421332681,1777452638833,-150.0,9.882e-05,2]
[421332682,1777452638843,-150.0,9.919e-05,2]
[421332683,1777452638853,-150.0,9.941e-05,2]
[421332684,1777452638863,-150.0,9.941e-05,2]
[421332685,1777452638873,-150.0,9.941e-05,2]
[421332686,1777452638882,-150.0,9.955e-05,2]
[421332687,1777452638892,-150.0,9.992e-05,2]
[421332688,1777452638903,-193.61626162,0.00010016,2]
[421332689,1777452638913,-2500.0,0.00010016,2]
[421332690,1777452638923,-300.0,0.00010016,2]
[421332691,1777452638932,-545.38,0.00010021,2]
[421332692,1777452638943,-150.0,0.00010028,2]
[421332693,1777452638952,-150.0,0.00010047,2]
[421332694,1777452638962,-150.0,0.00010047,2]
[421332696,1777452638973,-216.52,0.00010048,2]
[421332698,1777452638982,-150.0,0.00010065,2]
[421332700,1777452638992,-150.0,0.00010101,2]
[421332701,1777452639003,-150.0,0.00010138,2]
[421332702,1777452639012,-500.0,0.00010146,2]
[421332703,1777452639022,-516.85132358,0.00010146,2]
[421332704,1777452639033,-500.0,0.00010146,2]
[421332705,1777452639042,-500.0,0.00010146,2]
[421332706,1777452639052,-500.0,0.00010146,2]
[421332707,1777452639063,-500.0,0.00010146,2]
[421332708,1777452639073,-500.0,0.00010146,2]
[421332709,1777452639083,-450.23288285,0.00010146,2]
[421332710,1777452639093,-420.0,0.00010148,2]
[421332712,1777452639103,-420.0,0.00010148,2]
[421332714,1777452639114,-1680.0,0.00010148,2]
[421332716,1777452639124,-150.0,0.00010152,2]
[421332718,1777452639135,-150.0,0.00010152,2]
[421332720,1777452639145,-150.0,0.00010162,2]
[421332722,1777452639154,-150.0,0.00010162,2]
[421332724,1777452639165,-200.0,0.00010162,2]
[421332726,1777452639175,-150.0,0.00010162,2]
[421332728,1777452639185,-150.0,0.00010162,2]
[421332730,1777452639195,-163.00448163,0.00010162,2]
[421332732,1777452639205,-500.0,0.00010162,2]
[421332734,1777452639215,-500.0,0.00010162,2]
[421332736,1777452639225,-500.0,0.00010162,2]
[421332738,1777452639235,-500.0,0.00010162,2]
[421332740,1777452639245,-500.0,0.00010162,2]
[421332742,1777452639255,-500.0,0.00010162,2]
[421332744,1777452639265,-500.0,0.00010162,2]
[421332746,1777452639275,-500.0,0.00010162,2]
[421332748,1777452639284,-500.0,0.00010162,2]
[421332750,1777452639295,-500.0,0.00010162,2]
[421332752,1777452639305,-500.0,0.00010162,2]
[421332755,1777452639314,-500.0,0.00010162,2]
[421332756,1777452639324,-500.0,0.00010162,2]
[421332758,1777452639334,-500.0,0.00010162,2]
[421332760,1777452639344,-150.0,0.00010162,2]
[421332761,1777452639354,-150.0,0.00010162,2]
[421332763,1777452639363,-159.53124321,0.00010162,2]
[421332764,1777452639373,-150.0,0.00010174,2]
[421332765,1777452639383,-150.0,0.00010211,2]
[421332766,1777452639393,-150.0,0.00010247,2]
[421332767,1777452639403,-150.0,0.00010284,2]
[421332768,1777452639412,-150.0,0.00010311,2]
[421332769,1777452639422,-150.0,0.0001032,2]
[421332770,1777452639432,-114197.27074046,0.00010326,2]
[421332776,1777452639786,-300.0,0.00010016,2]
[421332777,1777452639841,-200.0,0.00010016,2]
[421332778,1777452639850,-500.0,0.0001029,2]
[421332779,1777452639860,-1388.11203752,0.00010326,2]
[421332794,1777452642525,-510.13958758,0.00010326,2]
[421332795,1777452642578,-1331.97467909,0.00010326,2]
[421332796,1777452642792,-12517.89147762,0.00010326,2]
[421332797,1777452642815,-8150.42073168,0.00010326,2]
[421332798,1777452642900,-478.51655685,0.00010326,2]
[421332799,1777452642953,-676.05694954,0.00010326,2]
[421332801,1777452645532,-15779.25972917,0.00010326,2]
[421332802,1777452645588,-18088.20411049,0.00010326,2]
[421332803,1777452645598,-200.0,0.00010327,2]
[421332804,1777452645608,-721.12765535,0.00010327,2]
[421332805,1777452645619,-500.0,0.00010327,2]
[421332806,1777452645635,-151.0,0.00010327,2]
[421332807,1777452645646,-1428.38747117,0.00010327,2]
[421332808,1777452645658,-500.0,0.00010327,2]
[421332809,1777452645669,-151.0,0.00010327,2]
[421332810,1777452645680,-500.0,0.00010327,2]
[421332811,1777452645690,-151.0,0.00010327,2]
[421332812,1777452645701,-500.0,0.00010327,2]
[421332813,1777452645714,-151.0,0.00010327,2]
[421332814,1777452645727,-500.0,0.00010327,2]
[421332815,1777452645739,-151.0,0.00010327,2]
[421332816,1777452645756,-500.0,0.00010327,2]
[421332817,1777452645768,-151.0,0.00010327,2]
[421332818,1777452645780,-500.0,0.00010327,2]
[421332819,1777452645791,-151.0,0.00010327,2]
[421332820,1777452645801,-500.0,0.00010327,2]
[421332821,1777452645814,-500.0,0.00010327,2]
[421332822,1777452645828,-500.0,0.00010327,2]
[421332823,1777452645839,-500.0,0.00010327,2]
[421332824,1777452645851,-151.0,0.00010327,2]
[421332825,1777452645863,-151.0,0.00010327,2]
[421332826,1777452645875,-151.0,0.00010327,2]
[421332827,1777452645888,-151.0,0.00010327,2]
[421332828,1777452645899,-151.0,0.00010327,2]
[421332829,1777452645910,-151.0,0.00010327,2]
[421332830,1777452645920,-500.0,0.00010327,2]
[421332831,1777452645931,-211.75754912,0.00010327,2]
[421332832,1777452645942,-151.0,0.00010327,2]
[421332833,1777452645953,-500.0,0.00010327,2]
[421332834,1777452645964,-151.0,0.00010327,2]
[421332835,1777452645975,-500.0,0.00010327,2]
[421332836,1777452645986,-500.0,0.00010327,2]
[421332837,1777452645996,-500.0,0.00010327,2]
[421332838,1777452646008,-500.0,0.00010327,2]
[421332839,1777452646018,-151.1837373,0.00010327,2]
[421332840,1777452646035,-500.0,0.00010327,2]
[421332841,1777452646046,-500.0,0.00010327,2]
[421332842,1777452646057,-500.0,0.00010327,2]
[421332843,1777452646069,-500.0,0.00010327,2]
[421332844,1777452646080,-500.0,0.00010327,2]
[421332845,1777452646091,-279.9045709,0.00010327,2]
[421332846,1777452646101,-1350.0,0.00010333,2]
[421332847,1777452646112,-1049.0,0.00010333,2]
[421332848,1777452646123,-3532.0,0.00010333,2]
[421332849,1777452646133,-150.0,0.00010333,2]
[421332850,1777452646145,-1268.608,0.00010333,2]
[421332851,1777452646155,-928.735,0.00010333,2]
[421332852,1777452646166,-416.0,0.00010333,2]
[421332853,1777452646178,-1663.0,0.00010333,2]
[421332854,1777452646189,-2784.407,0.00010333,2]
[421332855,1777452646199,-945.97189863,0.00010333,2]
[421332856,1777452646210,-776.90718728,0.00010333,2]
[421332857,1777452646220,-150.0,0.00010357,2]
[421332858,1777452646231,-383.0,0.00010363,2]
[421332859,1777452646244,-150.0,0.00010364,2]
[421332860,1777452646255,-150.0,0.00010364,2]
[421332861,1777452646267,-375.272269,0.00010372,2]
[421332862,1777452646277,-225.163361,0.00010372,2]
[421332863,1777452646288,-4158.2834,0.00010374,2]
[421332864,1777452646300,-4535.8983,0.00010374,2]
[421332865,1777452646311,-1009.9228,0.00010375,2]
[421332866,1777452646323,-2500.0,0.00010383,2]
[421332867,1777452646334,-383.0,0.00010387,2]
[421332868,1777452646346,-150.0,0.00010393,2]
[421332869,1777452646358,-731.0,0.00010401,2]
[421332870,1777452646369,-150.0,0.00010429,2]
[421332871,1777452646380,-731.0,0.00010457,2]
[421332872,1777452646391,-150.0,0.00010466,2]
[421332873,1777452646403,-745.0,0.00010473,2]
[421332874,1777452646413,-150.99,0.00010475,2]
[421332875,1777452646429,-171.45,0.00010475,2]
[421332876,1777452646440,-88041.18,0.00010475,2]
[421332877,1777452646451,-2748.33,0.00010475,2]
[421332878,1777452646463,-519.33,0.00010475,2]
[421332879,1777452646474,-1553.07,0.00010475,2]
[421332880,1777452646485,-731.0,0.0001048,2]
[421332881,1777452646496,-151.0,0.00010481,2]
[421332882,1777452646508,-731.0,0.00010482,2]
[421332883,1777452646519,-2000.0,0.00010484,2]
[421332884,1777452646530,-5000.0,0.00010484,2]
[421332885,1777452646541,-4506.81666899,0.00010486,2]
[421332886,1777452646552,-731.0,0.00010486,2]
[421332887,1777452646564,-623.0,0.00010497,2]
[421332888,1777452646575,-339.5250961,0.000105,2]
[421332889,1777452646586,-790.16533809,0.000105,2]
[421332890,1777452646597,-183.1352164,0.000105,2]
[421332891,1777452646608,-150.0,0.00010502,2]
[421332892,1777452646619,-745.0,0.00010503,2]
[421332893,1777452646630,-351.70081028,0.00010511,2]
[421332894,1777452646641,-731.0,0.00010514,2]
[421332895,1777452646652,-731.0,0.00010524,2]
[421332896,1777452646666,-731.0,0.00010528,2]
[421332897,1777452646679,-150.0,0.00010539,2]
[421332898,1777452646689,-731.0,0.00010555,2]
[421332899,1777452646701,-752.0,0.00010555,2]
[421332900,1777452646712,-500.0,0.00010564,2]
[421332901,1777452646723,-731.0,0.00010571,2]
[421332902,1777452646733,-500.88431319,0.00010573,2]
[421332903,1777452646744,-234.13117685,0.00010573,2]
[421332904,1777452646755,-500.0,0.00010573,2]
[421332905,1777452646765,-500.0,0.00010573,2]
[421332906,1777452646776,-160.65084281,0.00010573,2]
[421332907,1777452646787,-72557.8424519,0.00010575,2]
[421332908,1777452646798,-8996.0687699,0.00010575,2]
[421332909,1777452646809,-26985.5930081,0.00010575,2]
[421332910,1777452646823,-222.78846457,0.00010575,2]
[421332911,1777452646834,-278.38904443,0.00010575,2]
[421332912,1777452646844,-150.0,0.00010575,2]
[421332913,1777452646855,-176.894,0.00010575,2]
[421332914,1777452646867,-150.0,0.00010575,2]
[421332915,1777452646878,-224.7189611,0.00010575,2]
[421332916,1777452646889,-150.00000001,0.00010575,2]
[421332917,1777452646900,-731.0,0.0001058,2]
[421332918,1777452646911,-702.97308205,0.00010583,2]
[421332919,1777452646927,-250.0,0.00010583,2]
[421332920,1777452646947,-731.0,0.00010586,2]
[421332921,1777452646969,-2000.0,0.0001059,2]
[421332922,1777452646995,-2000.0,0.0001059,2]
[421332923,1777452647017,-216.89416455,0.0001059,2]
[421332924,1777452647041,-731.0,0.00010594,2]
[421332925,1777452647054,-383.0,0.00010596,2]
[421332926,1777452647065,-151.0,0.00010597,2]
[421332927,1777452647076,-155.7367363,0.00010597,2]
[421332928,1777452647087,-843.0,0.000106,5]
[421332929,1777452647098,-734.0,0.000106,5]
[421332930,1777452647109,-796.0,0.000106,5]
[421332931,1777452647120,-131985.99092325,0.000106,3]
[421332932,1777452648462,-3874.0,0.000106,3]
[421332933,1777452648476,-52012.89254115,0.000106,3]
[421332934,1777452648499,-2687.05721403,0.000106,3]
[421332935,1777452745840,476.0,0.0003013,120]
[421332937,1777452835555,20000.0,0.00030137,120]
[421332978,1777453334605,215.27625202,0.000301,120]
[421332979,1777453432855,-150.0,0.00010021,2]
[421332980,1777453550523,500.0,0.00029452,120]
[421332981,1777453758964,269.0,0.00021423,120]
[421332983,1777453831676,-273.0,9.567e-05,2]
[421332984,1777453831686,-150.0,9.567e-05,2]
[421332985,1777453831697,-150.0,9.833e-05,2]
[421332986,1777453831707,-1833.11,0.00010021,2]
[421332987,1777453831717,-472.90409692,0.00010082,2]
[421332988,1777453831727,-700.0,0.00010092,2]
[421332989,1777453831737,-150.0,0.00010099,2]
[421332990,1777453831746,-2500.0,0.00010226,2]
[421332991,1777453831756,-300.0,0.00010265,2]
[421332992,1777453831766,-1200.0,0.00010265,2]
[421332993,1777453831776,-1220.0,0.00010266,2]
[421332994,1777453831786,-927.0,0.00010266,2]
[421332995,1777453831811,-1663.0,0.00010266,2]
[421332996,1777453831821,-3832.644,0.00010266,2]
[421332997,1777453831832,-150.0,0.00010305,2]
[421332998,1777453831842,-1000.0,0.00010305,2]
[421332999,1777453831852,-57099.7230904,0.00010306,2]
[421333000,1777453831862,-500.0,0.0001032,2]
[421333001,1777453831873,-500.0,0.0001032,2]
[421333002,1777453831883,-721.12765535,0.0001032,2]
[421333003,1777453831893,-151.0,0.0001032,2]
[421333004,1777453831903,-500.0,0.0001032,2]
[421333005,1777453831913,-151.0,0.0001032,2]
[421333006,1777453831923,-500.0,0.0001032,2]
[421333007,1777453831934,-151.0,0.0001032,2]
[421333008,1777453831944,-500.0,0.0001032,2]
[421333010,1777453831954,-151.0,0.0001032,2]
[421333012,1777453831965,-151.0,0.0001032,2]
[421333014,1777453831976,-500.0,0.0001032,2]
[421333015,1777453831987,-151.0,0.0001032,2]
[421333017,1777453831998,-500.0,0.0001032,2]
[421333018,1777453832009,-151.0,0.0001032,2]
[421333019,1777453832020,-500.0,0.0001032,2]
[421333020,1777453832030,-151.0,0.0001032,2]
[421333021,1777453832041,-500.0,0.0001032,2]
[421333022,1777453832052,-151.0,0.0001032,2]
[421333023,1777453832062,-500.0,0.0001032,2]
[421333024,1777453832073,-151.0,0.0001032,2]
[421333025,1777453832083,-500.0,0.0001032,2]
[421333026,1777453832093,-151.0,0.0001032,2]
[421333027,1777453832104,-200.0,0.0001032,2]
[421333028,1777453832114,-829.12830338,0.0001032,2]
[421333029,1777453832124,-500.0,0.0001032,2]
[421333031,1777453832134,-500.0,0.0001032,2]
[421333032,1777453832144,-500.0,0.0001032,2]
[421333033,1777453832154,-500.0,0.0001032,2]
[421333034,1777453832163,-500.0,0.0001032,2]
[421333035,1777453832173,-500.0,0.0001032,2]
[421333036,1777453832190,-380.39364218,0.0001032,2]
[421333037,1777453832200,-174.61919141,0.0001032,2]
[421333038,1777453832212,-193.18296559,0.0001032,2]
[421333039,1777453832223,-233.51889341,0.0001032,2]
[421333040,1777453832233,-151.0,0.0001032,2]
[421333041,1777453832245,-500.0,0.00010325,2]
[421333042,1777453832257,-500.0,0.00010325,2]
[421333043,1777453832267,-500.0,0.00010325,2]
[421333044,1777453832277,-500.0,0.00010325,2]
[421333045,1777453832287,-500.0,0.00010325,2]
[421333046,1777453832297,-500.0,0.00010325,2]
[421333047,1777453832307,-500.0,0.00010325,2]
[421333048,1777453832318,-500.0,0.00010325,2]
[421333049,1777453832328,-500.0,0.00010325,2]
[421333050,1777453832338,-500.0,0.00010325,2]
[421333051,1777453832348,-500.0,0.00010325,2]
[421333052,1777453832359,-500.0,0.00010325,2]
[421333053,1777453832368,-500.0,0.00010325,2]
[421333054,1777453832379,-500.0,0.00010325,2]
[421333055,1777453832389,-500.0,0.00010325,2]
[421333056,1777453832399,-500.0,0.00010325,2]
[421333057,1777453832409,-500.0,0.00010325,2]
[421333058,1777453832419,-481.75123385,0.00010325,2]
[421333059,1777453832431,-500.0,0.00010325,2]
[421333060,1777453832442,-500.0,0.00010325,2]
[421333061,1777453832452,-500.0,0.00010325,2]
[421333062,1777453832462,-500.0,0.00010325,2]
[421333063,1777453832473,-500.0,0.00010325,2]
[421333064,1777453832483,-500.0,0.00010325,2]
[421333065,1777453832493,-500.0,0.00010325,2]
[421333066,1777453832505,-498.17512339,0.00010325,2]
[421333067,1777453832516,-193.97303453,0.00010325,2]
[421333068,1777453832526,-333.13056926,0.00010325,2]
[421333069,1777453832536,-12839.58741041,0.00010326,2]
[421333070,1777453832551,-158670.97765879,0.00010326,2]
[421333071,1777453832563,-6034.7321865,0.00010326,2]
[421333072,1777453832581,-508.0,0.00010326,2]
[421333073,1777453832599,-4267.49092811,0.00010326,2]
[421333074,1777453832611,-531.73649619,0.00010326,2]
[421333075,1777453832624,-4593.23141472,0.00010326,2]
[421333081,1777453837950,-1155.85,0.00010326,2]
[421333169,1777453840847,-3885.1,0.00010326,2]
[421333170,1777453840859,-4168.45762947,0.00010326,2]
[421333171,1777453840874,-253.57683251,0.00010326,2]
[421333180,1777453842857,-461.57068188,0.00010326,2]
[421333181,1777453843161,-6000.0,0.00010326,2]
[421333286,1777453846075,-12949.40223683,0.00010326,2]
[421333287,1777453846129,-875.0,0.00010326,2]
[421333288,1777453846185,-2183.148,0.00010326,2]
[421333421,1777453912688,1000.0,0.00030136,120]
[421333422,1777453912941,1003.76617382,0.00030136,120]
[421333424,1777453977004,588.0,0.00030137,120]
[421333430,1777454660780,376.0,0.00021423,120]
[421333431,1777454728322,650.26,0.00030137,120]
[421333432,1777454935000,622.0,0.00021423,120]
[421333433,1777454936000,150.0,9.303e-05,30]
[421333434,1777454936000,150.0,9.871e-05,30]
[421333436,1777454937000,150.0,0.00011007,30]
[421333435,1777454937000,150.0,0.00010439,30]
[421333437,1777454938000,150.0,0.00011574,30]
[421333454,1777455031000,-155.68,0.0001,2]
[421333453,1777455031000,-167.0,9.999e-05,2]
[421333441,1777455031000,-150.0,9.616e-05,2]
[421333443,1777455031000,-150.0,9.616e-05,2]
[421333444,1777455031000,-176.35900001,9.616e-05,2]
[421333446,1777455031000,-150.0,9.616e-05,2]
[421333442,1777455031000,-150.0,9.616e-05,2]
[421333440,1777455031000,-274.0,9.616e-05,2]
[421333445,1777455031000,-150.00000001,9.616e-05,2]
[421333447,1777455031000,-150.0,9.769e-05,2]
[421333449,1777455031000,-250.0,9.966e-05,2]
[421333450,1777455031000,-99.64099998,9.999e-05,2]
[421333451,1777455031000,-200.35900002,9.999e-05,2]
[421333452,1777455031000,-1200.0,9.999e-05,2]
[421333448,1777455031000,-150.0,9.922e-05,2]
[421333466,1777455032000,-151.0,0.000102,2]
[421333461,1777455032000,-222.04159724,0.000102,2]
[421333463,1777455032000,-151.0,0.000102,2]
[421333462,1777455032000,-151.0,0.000102,2]
[421333460,1777455032000,-721.12765535,0.000102,2]
[421333457,1777455032000,-150.0,0.00010074,2]
[421333455,1777455032000,-18500.02,0.0001,2]
[421333459,1777455032000,-151.0,0.000102,2]
[421333456,1777455032000,-2021.97763837,0.00010055,2]
[421333464,1777455032000,-151.0,0.000102,2]
[421333465,1777455032000,-151.0,0.000102,2]
[421333458,1777455032000,-150.0,0.00010199,2]
[421333468,1777455032000,-17120.3724683,0.00010207,2]
[421333471,1777455032000,-6127.228,0.00010207,2]
[421333469,1777455032000,-8408.46727034,0.00010207,2]
[421333484,1777455032000,-2021.97763837,0.00010207,2]
[421333481,1777455032000,-339.75260614,0.00010207,2]
[421333467,1777455032000,-151.0,0.000102,2]
[421333486,1777455032000,-674.06681493,0.00010207,2]
[421333479,1777455032000,-501.55199785,0.00010207,2]
[421333477,1777455032000,-604.22503791,0.00010207,2]
[421333483,1777455032000,-380.68182096,0.00010207,2]
[421333478,1777455032000,-8119.79882738,0.00010207,2]
[421333472,1777455032000,-7708.7,0.00010207,2]
[421333470,1777455032000,-4556.57125749,0.00010207,2]
[421333476,1777455032000,-867.29465335,0.00010207,2]
[421333488,1777455032000,-1306.353504,0.00010207,2]
[421333473,1777455032000,-458.80968873,0.00010207,2]
[421333524,1777455038000,-1478.63014659,0.00010207,2]
[421333523,1777455038000,-4144.1699421,0.00010207,2]
[421333522,1777455038000,-269.21200311,0.00010207,2]
[421333521,1777455038000,-11556.63275172,0.00010207,2]
[421333622,1777455041000,-15410.5814108,0.00010207,2]
[421333623,1777455041000,-36907.56288,0.00010207,2]
[421333624,1777455041000,-2099.26102408,0.00010207,2]